fUSD/lending_fUSD_20240117
["ID","MTS","AMOUNT","RATE_DAILY","PERIOD"]
[311904808,1705491049539,-560.12,0.00022465,2]
[311904809,1705491049548,-500.0,0.00022465,2]
[311904810,1705491049558,-1800.52,0.00022465,2]
[311904811,1705491049568,-500.0,0.00022465,2]
[311904812,1705491049578,-500.0,0.00022465,2]
[311904813,1705491049587,-500.0,0.00022465,2]
[311904814,1705491049597,-500.0,0.00022465,2]
[311904815,1705491049606,-187.51,0.00022465,2]
[311904816,1705491049616,-1033.23,0.00022465,2]
[311904817,1705491049625,-229.61,0.00022465,2]
[311904818,1705491049635,-500.0,0.00022465,2]
[311904819,1705491049644,-1604.59,0.00022465,2]
[311904820,1705491049654,-500.0,0.00022465,2]
[311904821,1705491049663,-500.0,0.00022465,2]
[311904822,1705491049673,-4555.16,0.00022465,2]
[311904823,1705491049683,-660.71,0.00022465,2]
[311904824,1705491049693,-512.93,0.00022465,2]
[311904825,1705491049706,-500.0,0.00022465,2]
[311904826,1705491049716,-500.0,0.00022465,2]
[311904827,1705491049727,-500.0,0.00022465,2]
[311904828,1705491049739,-500.0,0.00022465,2]
[311904829,1705491049748,-591.24420114,0.00022465,2]
[311904830,1705491049759,-17619.33,0.00022465,2]
[311904831,1705491049768,-500.0,0.00022465,2]
[311904832,1705491049779,-341.08,0.00022465,2]
[311904833,1705491049788,-500.0,0.00022465,2]
[311904834,1705491049798,-958.11,0.00022465,2]
[311904835,1705491049807,-500.0,0.00022465,2]
[311904836,1705491049816,-1051.77,0.00022465,2]
[311904837,1705491049825,-500.0,0.00022465,2]
[311904838,1705491049835,-500.0,0.00022465,2]
[311904839,1705491049844,-500.0,0.00022465,2]
[311904840,1705491049856,-564.29,0.00022465,2]
[311904841,1705491049865,-500.0,0.00022465,2]
[311904842,1705491049874,-799.67,0.00022465,2]
[311904843,1705491049883,-514.91322749,0.00022465,2]
[311904844,1705491049894,-438.2,0.00022465,2]
[311904845,1705491049903,-500.0,0.00022465,5]
[311904846,1705491049913,-500.0,0.00022465,2]
[311904847,1705491049922,-300.85,0.00022465,2]
[311904848,1705491049932,-253.52,0.00022465,2]
[311904849,1705491049942,-265.5,0.00022465,2]
[311904850,1705491049950,-500.0,0.00022465,2]
[311904851,1705491049959,-500.0,0.00022465,2]
[311904852,1705491049968,-500.0,0.00022465,2]
[311904853,1705491049977,-707.76,0.00022465,2]
[311904854,1705491049986,-500.0,0.00022465,2]
[311904855,1705491049995,-446.59,0.00022465,2]
[311904856,1705491050004,-360.97,0.00022465,2]
[311904857,1705491050014,-500.0,0.00022465,2]
[311904858,1705491050023,-276.34,0.00022465,2]
[311904859,1705491050032,-283.05,0.00022465,2]
[311904860,1705491050041,-512.35903379,0.00022465,2]
[311904861,1705491050051,-500.0,0.00022465,2]
[311904862,1705491050061,-500.0,0.00022465,2]
[311904863,1705491050070,-500.0,0.00022465,2]
[311904864,1705491050079,-500.0,0.00022465,2]
[311904865,1705491050088,-620.01,0.00022465,2]
[311904866,1705491050097,-2941.81,0.00022465,2]
[311904867,1705491050107,-707.93,0.00022465,2]
[311904868,1705491050116,-500.0,0.00022465,2]
[311904869,1705491050125,-541.11,0.00022465,2]
[311904870,1705491050134,-500.0,0.00022465,2]
[311904871,1705491050144,-160.09,0.00022491,2]
[311904872,1705491050153,-715.77311548,0.00022639,2]
[311904873,1705491050162,-184.77981935,0.00022737,2]
[311904874,1705491050172,-633.11664535,0.00022737,2]
[311904875,1705491050181,-155.93996978,0.00022738,2]
[311904876,1705491050190,-383.86171178,0.00022738,2]
[311904877,1705491050199,-7377.05647498,0.00022738,2]
[311904878,1705491050208,-294.20737805,0.00022738,2]
[311904879,1705491050217,-233.12709957,0.00022738,2]
[311904880,1705491050227,-2446.69,0.00022738,2]
[311904881,1705491050236,-220.26463104,0.00022739,2]
[311904882,1705491050248,-500.0,0.00022739,2]
[311904883,1705491050263,-500.0,0.00022739,2]
[311904884,1705491050275,-925.18,0.00022739,2]
[311904885,1705491050284,-500.0,0.00022739,2]
[311904886,1705491050292,-529.36,0.00022739,2]
[311904887,1705491050301,-500.0,0.00022739,2]
[311904888,1705491050311,-500.0,0.00022739,2]
[311904889,1705491050320,-572.15,0.00022739,2]
[311904890,1705491050330,-592.47,0.00022739,2]
[311904891,1705491050339,-500.0,0.00022739,2]
[311904892,1705491050348,-500.0,0.00022739,2]
[311904893,1705491050357,-500.0,0.00022739,2]
[311904894,1705491050366,-500.0,0.00022739,2]
[311904895,1705491050376,-336.95,0.00022739,2]
[311904896,1705491050385,-1126.63,0.00022739,2]
[311904897,1705491050394,-500.0,0.00022739,2]
[311904898,1705491050403,-185.3,0.00022739,2]
[311904899,1705491050412,-601.93,0.00022739,2]
[311904900,1705491050422,-300.14373838,0.00022739,2]
[311904901,1705491050432,-422.84,0.00022739,2]
[311904902,1705491050441,-989.91,0.00022739,2]
[311904903,1705491050450,-500.0,0.00022739,2]
[311904904,1705491050460,-649.67,0.00022739,2]
[311904905,1705491050470,-1047.06,0.00022739,2]
[311904906,1705491050481,-154.72,0.00022739,2]
[311904907,1705491050491,-500.0,0.00022739,2]
[311904908,1705491050501,-766.06,0.00022739,2]
[311904909,1705491050510,-500.0,0.00022739,2]
[311904910,1705491050520,-369.58,0.00022739,2]
[311904911,1705491050529,-500.0,0.00022739,2]
[311904912,1705491050539,-854.03,0.00022739,2]
[311904913,1705491050548,-500.0,0.00022739,2]
[311904914,1705491050557,-500.0,0.00022739,2]
[311904915,1705491050567,-2022.47,0.00022739,2]
[311904916,1705491050576,-500.0,0.00022739,2]
[311904917,1705491050585,-1951.3,0.00022739,2]
[311904918,1705491050595,-500.0,0.00022739,2]
[311904919,1705491050606,-500.0,0.00022739,2]
[311904920,1705491050615,-151.52030504,0.00022739,2]
[311904921,1705491050624,-500.0,0.00022739,2]
[311904922,1705491050633,-500.0,0.00022739,2]
[311904923,1705491050645,-509.49873228,0.00022739,2]
[311904924,1705491050654,-935.03,0.00022739,2]
[311904925,1705491050664,-389.59,0.00022739,2]
[311904926,1705491050674,-500.0,0.00022739,2]
[311904927,1705491050684,-214.16,0.00022739,2]
[311904928,1705491050694,-500.0,0.00022739,2]
[311904929,1705491050706,-484.62,0.00022739,2]
[311904930,1705491050715,-500.0,0.00022739,2]
[311904931,1705491050724,-293.83,0.00022739,2]
[311904932,1705491050734,-500.0,0.00022739,2]
[311904933,1705491050745,-1610.2,0.00022739,2]
[311904934,1705491050754,-442.48,0.00022739,2]
[311904935,1705491050763,-1055.02,0.00022739,2]
[311904936,1705491050773,-1394.63,0.00022739,2]
[311904937,1705491050783,-553.8,0.00022739,2]
[311904938,1705491050792,-500.0,0.00022739,2]
[311904939,1705491050802,-500.0,0.00022739,2]
[311904940,1705491050812,-500.0,0.00022739,2]
[311904941,1705491050821,-500.0,0.00022739,2]
[311904942,1705491050831,-500.0,0.00022739,2]
[311904943,1705491050840,-151.88,0.00022739,2]
[311904944,1705491050849,-500.0,0.00022739,2]
[311904945,1705491050858,-500.0,0.00022739,2]
[311904946,1705491050868,-500.0,0.00022739,2]
[311904947,1705491050878,-500.0,0.00022739,2]
[311904948,1705491050888,-500.0,0.00022739,2]
[311904949,1705491050897,-500.0,0.00022739,2]
[311904950,1705491050906,-500.0,0.00022739,2]
[311904951,1705491050915,-500.0,0.00022739,2]
[311904952,1705491050924,-500.0,0.00022739,2]
[311904953,1705491050933,-500.0,0.00022739,2]
[311904954,1705491050943,-500.0,0.00022739,2]
[311904955,1705491050952,-500.0,0.00022739,2]
[311904956,1705491050962,-536.34,0.00022739,2]
[311904957,1705491050971,-500.0,0.00022739,2]
[311904958,1705491050981,-500.0,0.00022739,2]
[311904959,1705491050989,-500.0,0.00022739,2]
[311904960,1705491050999,-617.87,0.00022739,2]
[311904961,1705491051007,-510.35,0.00022739,2]
[311904962,1705491051017,-500.0,0.00022739,2]
[311904963,1705491051026,-500.0,0.00022739,2]
[311904964,1705491051035,-500.0,0.00022739,2]
[311904965,1705491051044,-500.0,0.00022739,2]
[311904966,1705491051053,-1080.69,0.00022739,2]
[311904967,1705491051063,-1459.14,0.00022739,2]
[311904968,1705491051072,-500.0,0.00022739,2]
[311904969,1705491051081,-1800.52,0.00022739,2]
[311904970,1705491051090,-500.0,0.00022739,2]
[311904971,1705491051100,-500.0,0.00022739,2]
[311904972,1705491051109,-500.0,0.00022739,2]
[311904973,1705491051119,-500.0,0.00022739,2]
[311904974,1705491051128,-1033.23,0.00022739,2]
[311904975,1705491051137,-500.0,0.00022739,2]
[311904976,1705491051147,-1604.59,0.00022739,2]
[311904977,1705491051157,-630.1,0.00022739,2]
[311904978,1705491051168,-378.9,0.00022739,2]
[311904979,1705491051179,-4555.16,0.00022739,2]
[311904980,1705491051188,-660.71,0.00022739,2]
[311904981,1705491051197,-500.0,0.00022739,2]
[311904982,1705491051207,-500.0,0.00022739,2]
[311904983,1705491051216,-500.0,0.00022739,2]
[311904984,1705491051226,-500.0,0.00022739,2]
[311904985,1705491051235,-17619.33,0.00022739,2]
[311904986,1705491051245,-500.0,0.00022739,2]
[311904987,1705491051254,-500.0,0.00022739,2]
[311904988,1705491051263,-958.11,0.00022739,2]
[311904989,1705491051272,-500.0,0.00022739,2]
[311904990,1705491051282,-1051.77,0.00022739,2]
[311904991,1705491051291,-500.0,0.00022739,2]
[311904992,1705491051299,-500.0,0.00022739,2]
[311904993,1705491051308,-500.0,0.00022739,2]
[311904994,1705491051317,-564.29,0.00022739,2]
[311904995,1705491051327,-575.26,0.00022739,2]
[311904996,1705491051336,-799.67,0.00022739,2]
[311904997,1705491051346,-500.0,0.00022739,2]
[311904998,1705491051359,-500.0,0.00022739,2]
[311904999,1705491051368,-500.0,0.00022739,2]
[311905000,1705491051378,-500.0,0.00022739,2]
[311905001,1705491051388,-707.76,0.00022739,2]
[311905002,1705491051398,-182.45,0.00022739,2]
[311905003,1705491051410,-610.94,0.00022739,2]
[311905004,1705491051420,-518.42,0.00022739,2]
[311905005,1705491051430,-500.0,0.00022739,2]
[311905006,1705491051440,-500.0,0.00022739,2]
[311905007,1705491051449,-500.0,0.00022739,2]
[311905008,1705491051459,-620.01,0.00022739,2]
[311905009,1705491051468,-2941.81,0.00022739,2]
[311905010,1705491051479,-707.93,0.00022739,2]
[311905011,1705491051488,-363.85,0.00022739,2]
[311905012,1705491051498,-500.0,0.00022739,2]
[311905013,1705491051508,-156.0,0.00022766,2]
[311905014,1705491051518,-159.68,0.00022815,2]
[311905015,1705491051528,-151.17074479,0.000229,2]
[311905016,1705491051537,-152.34230336,0.000229,2]
[311905017,1705491051547,-152.34230328,0.000229,2]
[311905018,1705491051557,-152.34230328,0.000229,2]
[311905019,1705491051567,-152.34230328,0.000229,2]
[311905020,1705491051577,-152.34230328,0.000229,2]
[311905021,1705491051587,-152.34230328,0.000229,2]
[311905022,1705491051708,-152.34230328,0.000229,2]
[311905023,1705491051725,-152.34230328,0.000229,2]
[311905024,1705491051735,-152.34230328,0.000229,2]
[311905025,1705491051746,-250.0,0.00022913,2]
[311905026,1705491051755,-172.52,0.00022995,2]
[311905027,1705491051765,-281.38,0.00023,2]
[311905028,1705491051776,-671.91552869,0.00023005,2]
[311905029,1705491051785,-156.70746691,0.00023011,2]
[311905030,1705491051794,-218.60881656,0.00023011,2]
[311905031,1705491051804,-155.0,0.00023011,2]
[311905032,1705491051814,-276.10922911,0.00023011,2]
[311905033,1705491051824,-2720.59981463,0.00023011,2]
[311905034,1705491051834,-717.77,0.00023013,2]
[311905035,1705491051843,-500.0,0.00023013,2]
[311905036,1705491051854,-500.0,0.00023013,2]
[311905037,1705491051863,-925.18,0.00023013,2]
[311905038,1705491051873,-500.0,0.00023013,2]
[311905039,1705491051882,-529.36,0.00023013,2]
[311905040,1705491051893,-500.0,0.00023013,2]
[311905041,1705491051902,-500.0,0.00023013,2]
[311905042,1705491051911,-572.15,0.00023013,2]
[311905043,1705491051920,-592.47,0.00023013,2]
[311905044,1705491051929,-500.0,0.00023013,2]
[311905045,1705491051939,-500.0,0.00023013,2]
[311905046,1705491051948,-500.0,0.00023013,2]
[311905047,1705491051958,-500.0,0.00023013,2]
[311905048,1705491051967,-1126.63,0.00023013,2]
[311905049,1705491051976,-500.0,0.00023013,2]
[311905050,1705491051985,-601.93,0.00023013,2]
[311905051,1705491051995,-989.91,0.00023013,2]
[311905052,1705491052004,-500.0,0.00023013,2]
[311905053,1705491052014,-649.67,0.00023013,2]
[311905054,1705491052023,-1047.06,0.00023013,2]
[311905055,1705491052032,-500.0,0.00023013,2]
[311905056,1705491052042,-766.06,0.00023013,2]
[311905057,1705491052051,-458.91626966,0.00023013,2]
[311905058,1705491052060,-500.0,0.00023013,2]
[311905059,1705491052070,-854.03,0.00023013,2]
[311905060,1705491052079,-500.0,0.00023013,2]
[311905061,1705491052088,-500.0,0.00023013,2]
[311905062,1705491052097,-2022.47,0.00023013,2]
[311905063,1705491052108,-500.0,0.00023013,2]
[311905064,1705491052118,-1951.3,0.00023013,2]
[311905065,1705491052127,-402.87,0.00023013,2]
[311905066,1705491052137,-500.0,0.00023013,2]
[311905067,1705491052146,-500.0,0.00023013,2]
[311905068,1705491052156,-500.0,0.00023013,2]
[311905069,1705491052165,-935.03,0.00023013,2]
[311905070,1705491052174,-500.0,0.00023013,2]
[311905071,1705491052184,-483.61,0.00023013,2]
[311905072,1705491052193,-500.0,0.00023013,2]
[311905073,1705491052202,-500.0,0.00023013,2]
[311905074,1705491052213,-1610.2,0.00023013,2]
[311905075,1705491052224,-1055.02,0.00023013,2]
[311905076,1705491052234,-1394.63,0.00023013,2]
[311905077,1705491052243,-500.0,0.00023013,2]
[311905078,1705491052253,-500.0,0.00023013,2]
[311905079,1705491052263,-307.4,0.00023013,2]
[311905080,1705491052272,-500.0,0.00023013,2]
[311905081,1705491052282,-500.0,0.00023013,2]
[311905082,1705491052291,-500.0,0.00023013,2]
[311905083,1705491052301,-500.0,0.00023013,2]
[311905084,1705491052310,-500.0,0.00023013,2]
[311905085,1705491052319,-500.0,0.00023013,2]
[311905086,1705491052328,-500.0,0.00023013,2]
[311905087,1705491052337,-500.0,0.00023013,2]
[311905088,1705491052347,-500.0,0.00023013,2]
[311905089,1705491052357,-500.0,0.00023013,2]
[311905090,1705491052366,-500.0,0.00023013,2]
[311905091,1705491052375,-500.0,0.00023013,2]
[311905092,1705491052385,-576.91,0.00023013,2]
[311905093,1705491052394,-320.22,0.00023013,2]
[311905094,1705491052404,-500.0,0.00023013,2]
[311905095,1705491052414,-500.0,0.00023013,2]
[311905096,1705491052424,-174.98,0.00023013,2]
[311905097,1705491052434,-617.87,0.00023013,2]
[311905098,1705491052444,-500.0,0.00023013,2]
[311905099,1705491052453,-332.79,0.00023013,2]
[311905100,1705491052463,-500.0,0.00023013,2]
[311905101,1705491052472,-500.0,0.00023013,2]
[311905102,1705491052482,-1080.69,0.00023013,2]
[311905103,1705491052491,-1459.14,0.00023013,2]
[311905104,1705491052501,-500.0,0.00023013,2]
[311905105,1705491052510,-1800.52,0.00023013,2]
[311905106,1705491052520,-500.0,0.00023013,2]
[311905107,1705491052529,-556.9,0.00023013,2]
[311905108,1705491052538,-500.0,0.00023013,2]
[311905109,1705491052548,-500.0,0.00023013,2]
[311905110,1705491052557,-1033.23,0.00023013,2]
[311905111,1705491052566,-500.0,0.00023013,2]
[311905112,1705491052577,-1604.59,0.00023013,2]
[311905113,1705491052586,-4555.16,0.00023013,2]
[311905114,1705491052596,-660.71,0.00023013,2]
[311905115,1705491052605,-288.39,0.00023013,2]
[311905116,1705491052615,-298.13,0.00023013,2]
[311905117,1705491052626,-500.0,0.00023013,2]
[311905118,1705491052636,-574.35,0.00023013,2]
[311905119,1705491052645,-17619.33,0.00023013,2]
[311905120,1705491052655,-500.0,0.00023013,2]
[311905121,1705491052665,-500.0,0.00023013,2]
[311905122,1705491052674,-500.0,0.00023013,2]
[311905123,1705491052683,-1051.77,0.00023013,2]
[311905124,1705491052694,-500.0,0.00023013,2]
[311905125,1705491052708,-500.0,0.00023013,2]
[311905126,1705491052718,-500.0,0.00023013,2]
[311905127,1705491052728,-958.11,0.00023013,2]
[311905128,1705491052737,-564.29,0.00023013,2]
[311905129,1705491052747,-799.67,0.00023013,2]
[311905130,1705491052757,-500.0,0.00023013,2]
[311905131,1705491052768,-500.0,0.00023013,2]
[311905132,1705491052778,-500.0,0.00023013,2]
[311905133,1705491052790,-500.0,0.00023013,2]
[311905134,1705491052801,-707.76,0.00023013,2]
[311905135,1705491052812,-500.0,0.00023013,2]
[311905136,1705491052822,-500.0,0.00023013,2]
[311905137,1705491052833,-500.0,0.00023013,2]
[311905138,1705491052843,-620.01,0.00023013,2]
[311905139,1705491052857,-2941.81,0.00023013,2]
[311905140,1705491052868,-707.93,0.00023013,2]
[311905141,1705491052879,-500.0,0.00023013,2]
[311905142,1705491052890,-279.54,0.00023093,2]
[311905143,1705491052901,-483.68814411,0.000231,2]
[311905144,1705491052913,-1000.0,0.00023136,2]
[311905145,1705491052924,-202.73294406,0.00023187,2]
[311905146,1705491052934,-184.67736102,0.00023187,2]
[311905147,1705491052945,-4678.5988323,0.00023187,2]
[311905148,1705491052954,-160.09,0.00023194,2]
[311905149,1705491052964,-500.0,0.0002327,2]
[311905150,1705491052973,-2446.69,0.00023286,2]
[311905151,1705491052983,-2446.69,0.00023286,2]
[311905152,1705491052993,-2446.69,0.00023286,2]
[311905153,1705491053003,-2446.69,0.00023286,2]
[311905154,1705491053012,-2446.69,0.00023286,2]
[311905155,1705491053022,-500.0,0.00023287,2]
[311905156,1705491053032,-500.0,0.00023287,2]
[311905157,1705491053042,-925.18,0.00023287,2]
[311905158,1705491053051,-500.0,0.00023287,2]
[311905159,1705491053061,-529.36,0.00023287,2]
[311905160,1705491053070,-500.0,0.00023287,2]
[311905161,1705491053079,-500.0,0.00023287,2]
[311905162,1705491053089,-572.15,0.00023287,2]
[311905163,1705491053099,-592.47,0.00023287,2]
[311905164,1705491053115,-519.06955788,0.00023287,2]
[311905165,1705491053125,-449.11440921,0.00023287,2]
[311905166,1705491053135,-500.0,0.00023287,2]
[311905167,1705491053146,-500.0,0.00023287,2]
[311905168,1705491053156,-1126.63,0.00023287,2]
[311905169,1705491053166,-500.0,0.00023287,2]
[311905170,1705491053175,-601.93,0.00023287,2]
[311905171,1705491053185,-989.91,0.00023287,2]
[311905172,1705491053194,-500.0,0.00023287,2]
[311905173,1705491053204,-649.67,0.00023287,2]
[311905174,1705491053214,-1047.06,0.00023287,2]
[311905175,1705491053225,-500.0,0.00023287,2]
[311905176,1705491053237,-766.06,0.00023287,2]
[311905177,1705491053247,-500.0,0.00023287,2]
[311905178,1705491053258,-854.03,0.00023287,2]
[311905179,1705491053267,-500.0,0.00023287,2]
[311905180,1705491053276,-500.0,0.00023287,2]
[311905181,1705491053286,-2022.47,0.00023287,2]
[311905182,1705491053295,-500.0,0.00023287,2]
[311905183,1705491053304,-1951.3,0.00023287,2]
[311905184,1705491053314,-500.0,0.00023287,2]
[311905185,1705491053325,-500.0,0.00023287,2]
[311905186,1705491053335,-269.9608544,0.00023287,2]
[311905187,1705491053345,-935.03,0.00023287,2]
[311905188,1705491053358,-500.0,0.00023287,2]
[311905189,1705491053368,-500.0,0.00023287,2]
[311905190,1705491053377,-500.0,0.00023287,2]
[311905191,1705491053386,-1610.2,0.00023287,2]
[311905192,1705491053396,-1055.02,0.00023287,2]
[311905193,1705491053406,-1394.63,0.00023287,2]
[311905194,1705491053415,-238.27,0.00023287,2]
[311905195,1705491053426,-500.0,0.00023287,2]
[311905196,1705491053436,-406.04,0.00023287,2]
[311905197,1705491053446,-500.0,0.00023287,2]
[311905198,1705491053456,-500.0,0.00023287,2]
[311905199,1705491053466,-500.0,0.00023287,2]
[311905200,1705491053476,-500.0,0.00023287,2]
[311905201,1705491053487,-500.0,0.00023287,2]
[311905202,1705491053497,-517.48,0.00023287,2]
[311905203,1705491053506,-500.0,0.00023287,2]
[311905204,1705491053517,-500.0,0.00023287,2]
[311905205,1705491053527,-500.0,0.00023287,2]
[311905206,1705491053537,-500.0,0.00023287,2]
[311905207,1705491053547,-513.25,0.00023287,2]
[311905208,1705491053557,-500.0,0.00023287,2]
[311905209,1705491053567,-500.0,0.00023287,2]
[311905210,1705491053577,-617.87,0.00023287,2]
[311905211,1705491053586,-212.95,0.00023287,2]
[311905212,1705491053595,-500.0,0.00023287,2]
[311905213,1705491053607,-500.0,0.00023287,2]
[311905214,1705491053617,-1080.69,0.00023287,2]
[311905215,1705491053627,-1459.14,0.00023287,2]
[311905216,1705491053637,-500.0,0.00023287,2]
[311905217,1705491053647,-1800.52,0.00023287,2]
[311905218,1705491053656,-500.0,0.00023287,2]
[311905219,1705491053666,-500.0,0.00023287,2]
[311905220,1705491053675,-229.69,0.00023287,2]
[311905221,1705491053684,-1033.23,0.00023287,2]
[311905222,1705491053698,-500.0,0.00023287,2]
[311905223,1705491053708,-1604.59,0.00023287,2]
[311905224,1705491053718,-4555.16,0.00023287,2]
[311905225,1705491053727,-660.71,0.00023287,2]
[311905226,1705491053737,-500.0,0.00023287,2]
[311905227,1705491053747,-17619.33,0.00023287,2]
[311905228,1705491053756,-500.0,0.00023287,2]
[311905229,1705491053766,-500.0,0.00023287,2]
[311905230,1705491053776,-500.0,0.00023287,2]
[311905231,1705491053787,-1051.77,0.00023287,2]
[311905232,1705491053796,-500.0,0.00023287,2]
[311905233,1705491053806,-500.0,0.00023287,2]
[311905234,1705491053815,-500.0,0.00023287,2]
[311905235,1705491053828,-958.11,0.00023287,2]
[311905236,1705491053837,-564.29,0.00023287,2]
[311905237,1705491053846,-799.67,0.00023287,2]
[311905238,1705491053858,-500.0,0.00023287,2]
[311905239,1705491054077,-500.0,0.00023287,2]
[311905240,1705491054124,-500.0,0.00023287,2]
[311905241,1705491054134,-500.0,0.00023287,2]
[311905242,1705491054144,-707.76,0.00023287,2]
[311905243,1705491054154,-500.0,0.00023287,2]
[311905244,1705491054164,-500.0,0.00023287,2]
[311905245,1705491054174,-500.0,0.00023287,2]
[311905246,1705491054184,-620.01,0.00023287,2]
[311905247,1705491054193,-2941.81,0.00023287,2]
[311905248,1705491054202,-707.93,0.00023287,2]
[311905249,1705491054212,-418.98,0.00023287,2]
[311905250,1705491054222,-151.17074475,0.00023381,2]
[311905251,1705491054232,-256.83,0.0002339,2]
[311905252,1705491054241,-205.29749463,0.00023461,4]
[311905253,1705491054250,-322.60316972,0.00023461,2]
[311905254,1705491054259,-256.83,0.00023527,2]
[311905255,1705491054268,-172.52,0.00023543,2]
[311905256,1705491054277,-500.0,0.00023561,2]
[311905257,1705491054286,-500.0,0.00023561,2]
[311905258,1705491054296,-925.18,0.00023561,2]
[311905259,1705491054305,-500.0,0.00023561,2]
[311905260,1705491054314,-529.36,0.00023561,2]
[311905261,1705491054324,-500.0,0.00023561,2]
[311905262,1705491054333,-500.0,0.00023561,2]
[311905263,1705491054342,-572.15,0.00023561,2]
[311905264,1705491054352,-592.47,0.00023561,2]
[311905265,1705491054363,-500.0,0.00023561,2]
[311905266,1705491054372,-500.0,0.00023561,2]
[311905267,1705491054381,-1126.63,0.00023561,2]
[311905268,1705491054391,-536.07099148,0.00023561,2]
[311905269,1705491054401,-601.93,0.00023561,2]
[311905270,1705491054410,-989.91,0.00023561,2]
[311905271,1705491054419,-500.0,0.00023561,2]
[311905272,1705491054429,-649.67,0.00023561,2]
[311905273,1705491054438,-1047.06,0.00023561,2]
[311905274,1705491054448,-766.06,0.00023561,2]
[311905275,1705491054457,-500.0,0.00023561,2]
[311905276,1705491054467,-854.03,0.00023561,2]
[311905277,1705491054477,-500.0,0.00023561,2]
[311905278,1705491054487,-500.0,0.00023561,2]
[311905279,1705491054496,-2022.47,0.00023561,2]
[311905280,1705491054506,-500.0,0.00023561,2]
[311905281,1705491054515,-1951.3,0.00023561,2]
[311905282,1705491054525,-500.0,0.00023561,2]
[311905283,1705491054535,-500.0,0.00023561,2]
[311905284,1705491054544,-935.03,0.00023561,2]
[311905285,1705491054554,-500.0,0.00023561,2]
[311905286,1705491054563,-500.0,0.00023561,2]
[311905287,1705491054572,-500.0,0.00023561,2]
[311905288,1705491054582,-1610.2,0.00023561,2]
[311905289,1705491054591,-1055.02,0.00023561,2]
[311905290,1705491054600,-1394.63,0.00023561,2]
[311905291,1705491054611,-293.41,0.00023561,2]
[311905292,1705491054621,-500.0,0.00023561,2]
[311905293,1705491054630,-586.75,0.00023561,2]
[311905294,1705491054640,-500.0,0.00023561,2]
[311905295,1705491054650,-500.0,0.00023561,2]
[311905296,1705491054659,-513.41,0.00023561,2]
[311905297,1705491054669,-500.0,0.00023561,2]
[311905298,1705491054678,-500.0,0.00023561,2]
[311905299,1705491054689,-500.0,0.00023561,2]
[311905300,1705491054701,-500.0,0.00023561,2]
[311905301,1705491054711,-500.0,0.00023561,2]
[311905302,1705491054721,-500.0,0.00023561,2]
[311905303,1705491054731,-617.87,0.00023561,2]
[311905304,1705491054740,-500.0,0.00023561,2]
[311905305,1705491054749,-263.35,0.00023561,2]
[311905306,1705491054759,-1080.69,0.00023561,2]
[311905307,1705491054768,-1459.14,0.00023561,2]